bitfinex-derivatives/quotes_SOLF0:USTF0_20220110
["timestamp","ask_amount","ask_price","bid_price","bid_amount"]
[1641851956457,7.76734009,135.18,135.12,27.66479]
[1641851956654,17.05234009,135.18,135.12,27.66479]
[1641851956856,15.20334009,135.18,135.15,3.70314762]
[1641851957856,17.05234009,135.18,135.15,3.70314762]
[1641851958057,8.19043082,135.16,135.15,3.70314762]
[1641851958257,10.03943082,135.16,135.04,7.10872811]
[1641851958457,5.92010037,135.14,135.02,95.0]
[1641851958657,5.92091585,135.12,135.02,91.0]
[1641851958859,1.85,135.11,135.02,91.0]
[1641851959059,10.036,135.11,135.02,91.0]
[1641851959460,27.66479,135.07,135.02,91.0]
[1641851959660,34.44479,135.07,134.99,77.84989]
[1641851960261,34.44479,135.07,134.99,50.1851]
[1641851960460,38.44479,135.07,134.99,50.1851]
[1641851960867,40.36792474,135.07,134.99,50.1851]
[1641851961061,44.36792474,135.07,134.97,190.66479]
[1641851961665,40.36792474,135.07,134.97,190.66479]
[1641851963165,40.36792474,135.07,135.03,2.86851537]
[1641851964267,4.0,135.05,135.03,2.86851537]
[1641851965566,27.66479,135.04,135.03,2.86851537]
[1641851965768,34.62379,135.04,135.03,2.86851537]
[1641851966066,34.62379,135.04,134.96,106.5642039]
[1641851966266,34.62379,135.04,134.96,91.0]
[1641851966668,34.62379,135.04,134.98,2.86885088]
[1641851968468,4.0,135.03,134.98,2.86885088]
[1641851970374,4.0,135.03,134.96,106.5642039]
[1641851970568,5.92501618,135.03,134.99,2.84039873]
[1641851970768,5.92353664,135.06,134.99,2.84039873]
[1641851970969,1.851,135.03,134.99,2.84039873]
[1641851971169,8.892,135.03,134.99,2.84039873]
[1641851972170,1.851,135.05,134.99,2.84039873]
[1641851972371,1.851,135.05,135.02,4.0]
[1641851972572,27.66479,135.07,135.02,4.0]
[1641851972771,1.851,135.09,135.02,8.733]
[1641851973572,29.51579,135.09,135.02,8.733]
[1641851973772,27.66479,135.09,135.02,8.733]
[1641851974373,4.19362094,135.05,135.02,8.733]
[1641851974575,4.19362094,135.05,135.0,6.86985712]
[1641851974774,4.19362094,135.05,135.0,2.86985712]
[1641851976576,4.19362094,135.05,135.0,6.86985712]
[1641851976978,4.19362094,135.05,135.0,2.86985712]
[1641851977180,4.19362094,135.05,135.02,4.0]
[1641851977378,4.19362094,135.05,135.02,11.033]
[1641851977580,4.19362094,135.05,135.03,27.66479]
[1641851977780,5.92225552,135.09,135.03,31.66479]
[1641851978180,4.19328446,135.04,135.03,27.66479]
[1641851979384,4.19328446,135.04,135.01,2.26713946]
[1641851981687,5.92352212,135.06,134.99,27.66479]
[1641851981887,9.295,135.04,135.03,2.26591896]
[1641851982087,5.92352212,135.06,135.03,2.26591896]
[1641851982688,4.19297366,135.04,135.03,2.26591896]
[1641851983087,10.11732685,135.04,135.03,2.26591896]
[1641851983689,19.11532685,135.04,134.99,27.66479]
[1641851984488,4.19297366,135.04,134.99,27.66479]
[1641851984689,15.5642039,135.09,135.03,4.0]
[1641851984889,15.5642039,135.09,135.03,12.304]
[1641851985091,15.5642039,135.09,135.08,4.0]
[1641851985289,15.5642039,135.09,135.08,10.754]
[1641851985490,41.50983319,135.13,135.08,10.754]
[1641851985692,41.50983319,135.13,135.08,6.754]
[1641851985891,41.50983319,135.13,135.11,27.66479]
[1641851986090,41.50983319,135.13,135.11,35.17679]
[1641851986393,7.76824561,135.18,135.11,35.17679]
[1641851986789,7.76824561,135.18,135.11,7.512]
[1641851987191,2.69983061,135.17,135.11,7.512]
[1641851988894,2.69983061,135.17,135.11,11.512]
[1641851989094,2.69983061,135.17,135.11,7.512]
[1641851989296,2.69983061,135.17,135.14,4.0]
[1641851989896,2.69983061,135.17,135.16,27.66479]
[1641851990597,2.69983061,135.21,135.16,27.66479]
[1641851991696,2.69983061,135.21,135.16,31.66479]
[1641851991897,2.69983061,135.22,135.16,31.66479]
[1641851992497,2.69983061,135.22,135.16,27.66479]
[1641851995803,7.76509085,135.23,135.16,27.66479]
[1641851997005,7.76509085,135.23,135.17,2.66766707]
[1641851997206,5.91750072,135.2,135.17,2.66766707]
[1641851997606,1.849,135.19,135.17,2.66766707]
[1641851997806,7.76650072,135.2,135.17,2.66766707]
[1641851998407,5.917994,135.19,135.17,2.66766707]
[1641852000407,5.917994,135.19,135.17,2.66787004]
[1641852001708,10.10798361,135.19,135.17,2.66787004]
[1641852003110,4.18998961,135.19,135.17,2.66787004]
[1641852003510,4.18998961,135.19,135.16,31.66479]
[1641852004111,4.18998961,135.19,135.16,27.66479]
[1641852004311,4.18998961,135.19,135.17,4.0]
[1641852004514,4.18998961,135.19,135.17,12.714]
[1641852005111,10.3674353,135.24,135.17,12.714]
[1641852005312,8.5184353,135.24,135.17,12.714]
[1641852005712,4.18994825,135.18,135.17,8.714]
[1641852006113,4.18994825,135.18,135.17,12.714]
[1641852007216,4.18994825,135.18,135.17,15.38155748]
[1641852007814,4.825e-05,135.18,135.17,15.38155748]
[1641852008915,8.5184353,135.24,135.17,70.71113748]
[1641852009114,4.18833645,135.18,135.17,70.71113748]
[1641852010419,8.5184353,135.24,135.17,70.71113748]
[1641852010617,8.5184353,135.24,135.17,68.04358]
[1641852010816,8.5184353,135.24,135.2,4.0]
[1641852011018,8.5184353,135.24,135.2,13.171]
[1641852011219,8.5184353,135.24,135.2,9.171]
[1641852011424,8.5184353,135.24,135.23,4.0]
[1641852011619,8.51651059,135.27,135.23,10.739]
[1641852012019,10.3632404,135.29,135.24,4.0]
[1641852012219,8.5152404,135.29,135.23,6.739]
[1641852012420,41.50983319,135.3,135.23,6.739]
[1641852012822,5.91230567,135.32,135.23,6.739]
[1641852013119,5.91230567,135.32,135.29,27.66479]
[1641852013321,5.91230567,135.32,135.29,36.75679]
[1641852013522,1.848,135.34,135.3,4.0]
[1641852013721,41.50983319,135.35,135.3,4.0]
[1641852013921,41.50983319,135.35,135.29,36.75679]
[1641852014122,12.05924432,135.37,135.33,4.0]
[1641852014321,12.05924432,135.37,135.35,4.0]
[1641852014522,10.21224432,135.37,135.35,4.0]
[1641852014723,27.66479,135.38,135.35,4.0]
[1641852015322,41.50983319,135.4,135.37,4.0]
[1641852015525,41.50983319,135.4,135.38,4.0]
[1641852015723,41.50983319,135.41,135.38,4.0]
[1641852016025,5.90848021,135.4,135.33,27.66479]
[1641852016223,7.75448021,135.4,135.33,27.66479]
[1641852016425,5.90977992,135.37,135.33,27.66479]
[1641852016724,5.90977992,135.37,135.33,31.66479]
[1641852017124,10.89,135.4,135.33,31.66479]
[1641852017324,1.846,135.4,135.33,27.66479]
[1641852017523,27.66479,135.41,135.33,27.66479]
[1641852017524,33.57318016,135.41,135.33,27.66479]
[1641852017724,1.846,135.39,135.33,27.66479]
[1641852017923,13.51727023,135.39,135.29,31.66479]
[1641852018125,11.67127023,135.39,135.29,31.66479]
[1641852018327,1.847,135.38,135.29,27.66479]
[1641852018535,5.91055943,135.36,135.29,31.66479]
[1641852018825,1.847,135.35,135.29,31.66479]
[1641852019026,5.91120446,135.34,135.29,27.66479]
[1641852019227,1.847,135.33,135.29,27.66479]
[1641852019526,5.91120446,135.34,135.29,27.66479]
[1641852019726,7.75857913,135.33,135.29,27.66479]
[1641852022027,5.91265361,135.31,135.29,27.66479]
[1641852022829,5.91265361,135.31,135.27,27.66479]
[1641852023428,7.09536955,135.3,135.27,14.03667116]
[1641852023627,13.97936955,135.3,135.27,14.03667116]
[1641852023830,13.97936955,135.3,135.16,4.0]
[1641852024029,13.97936955,135.3,135.2,4.0]
[1641852024231,1.848,135.29,135.18,4.0]
[1641852024631,1.848,135.29,135.19,4.0]
[1641852024833,1.848,135.29,135.15,4.0]
[1641852025032,27.66479,135.23,135.2,4.0]
[1641852025230,36.18479,135.23,135.2,4.0]
[1641852025932,36.18479,135.23,135.19,4.0]
[1641852026231,36.18479,135.23,135.15,4.0]
[1641852027131,63.84958,135.23,135.15,4.0]
[1641852027730,63.84958,135.23,135.11,27.66479]
[1641852028131,65.69858,135.23,135.11,27.66479]
[1641852028933,5.91699061,135.21,135.14,4.0]
[1641852029135,27.66479,135.2,135.14,4.0]
[1641852029333,35.50979,135.2,135.14,4.0]
[1641852029833,35.50979,135.2,135.12,2.49213438]
[1641852030233,35.50979,135.2,135.14,4.0]
[1641852030436,41.42729921,135.2,135.13,4.0]
[1641852031036,27.66479,135.17,135.13,4.0]
[1641852031236,34.68679,135.17,135.09,144.77122668]
[1641852031439,34.68679,135.17,135.12,4.0]
[1641852032843,40.60530607,135.17,135.09,77.76239]
[1641852033043,27.66479,135.14,135.09,77.76239]
[1641852033245,27.66479,135.14,135.09,27.66479]
[1641852033445,27.66479,135.14,135.11,4.0]
[1641852033844,27.66479,135.14,135.09,27.66479]
[1641852034045,27.66479,135.14,135.06,184.74702668]
[1641852034846,27.66479,135.14,135.07,2.49637935]
[1641852035546,27.66479,135.14,135.11,4.0]
[1641852035746,5.91903748,135.16,135.13,4.19040215]
[1641852036649,9.47672986,135.16,135.13,8.19040215]
[1641852038451,3.55769238,135.16,135.13,10.75240215]
[1641852038650,1.849,135.22,135.15,4.0]
[1641852038850,1.849,135.22,135.13,10.75240215]
[1641852039052,1.849,135.23,135.16,4.0]
[1641852039251,29.51379,135.23,135.16,7.986]
[1641852040052,29.51379,135.23,135.17,4.0]
[1641852040652,29.51379,135.23,135.16,4.0]
[1641852041253,27.66479,135.2,135.16,4.0]
[1641852041653,27.66479,135.2,135.14,4.1907179]
[1641852042056,27.66479,135.2,135.18,4.0]
[1641852042353,27.66479,135.2,135.14,17.4077179]
[1641852042553,27.66479,135.23,135.18,4.0]
[1641852042755,27.66479,135.23,135.18,9.208]
[1641852042961,1.849,135.26,135.2,4.0]
[1641852043254,29.51279,135.29,135.19,4.0]
[1641852043453,29.51279,135.29,135.18,9.208]
[1641852043454,27.66479,135.29,135.18,9.208]
[1641852043654,27.66479,135.29,135.23,4.0]
[1641852044855,1.848,135.28,135.22,4.0]
[1641852046556,7.76186588,135.28,135.22,4.0]
[1641852046957,7.76186588,135.28,135.2,4.18772485]
[1641852047258,27.66479,135.26,135.2,8.18772485]
[1641852047457,35.20679,135.26,135.2,8.18772485]
[1641852047656,35.20679,135.26,135.2,4.18772485]
[1641852047857,35.20679,135.26,135.21,4.0]
[1641852048059,33.35879,135.26,135.2,8.18772485]
[1641852048257,1.848,135.25,135.2,8.18772485]
[1641852049457,33.35879,135.26,135.2,8.18772485]
[1641852050160,33.35879,135.26,135.2,4.0]
[1641852050360,33.35879,135.26,135.21,4.18819223]
[1641852052471,33.35879,135.26,135.24,4.0]
[1641852052668,33.35879,135.26,135.21,4.18819223]
[1641852052869,5.694,135.26,135.24,4.0]
[1641852053068,27.66479,135.29,135.21,4.18819223]
[1641852053267,27.66479,135.29,135.23,4.0]
[1641852053668,2.6961816,135.28,135.22,4.0]
[1641852053867,8.61002235,135.28,135.21,4.0]
[1641852054067,1.848,135.27,135.18,54.4138]
[1641852054270,7.567,135.27,135.22,4.188274]
[1641852054468,5.719,135.27,135.22,4.188274]
[1641852054867,5.719,135.27,135.23,4.0]
[1641852055069,5.719,135.27,135.25,4.0]
[1641852055268,27.66479,135.29,135.25,4.0]
[1641852058371,27.66479,135.31,135.28,4.0]
[1641852058571,1.848,135.32,135.24,4.0]
[1641852058772,15.51063668,135.33,135.28,4.0]
[1641852058972,15.51063668,135.33,135.24,4.0]
[1641852059172,21.62463668,135.33,135.24,4.0]
[1641852059371,49.28942668,135.33,135.29,4.0]
[1641852059672,49.28942668,135.33,135.25,4.0]
[1641852059871,49.28942668,135.33,135.23,59.51786777]
[1641852059872,33.77879,135.33,135.29,4.0]
[1641852061973,39.69036793,135.33,135.26,4.18752205]
[1641852062174,1.847,135.32,135.26,4.18752205]
[1641852062472,5.91290821,135.3,135.26,4.18752205]
[1641852062675,13.63390821,135.3,135.26,4.18752205]
[1641852063374,27.66479,135.28,135.26,4.18752205]
[1641852063574,33.5785005,135.28,135.26,4.18752205]
[1641852064977,33.5785005,135.28,135.19,31.66479]
[1641852065578,33.5785005,135.28,135.18,4.0]
[1641852065779,5.91504368,135.25,135.18,4.0]
[1641852065977,12.88204368,135.25,135.18,4.0]
[1641852066578,12.88204368,135.25,135.17,4.0]
[1641852066781,18.79740423,135.25,135.17,4.0]
[1641852066981,1.848,135.24,135.17,4.0]
[1641852067383,27.66479,135.19,135.17,4.0]
[1641852067581,35.51579,135.19,135.17,4.0]
[1641852068882,35.51579,135.19,135.12,73.75173668]
[1641852069081,35.51579,135.19,135.17,4.0]
[1641852070181,35.51579,135.19,135.18,4.0]
[1641852070581,7.851,135.19,135.18,4.0]
[1641852070780,27.66479,135.22,135.18,8.0]
[1641852070981,2.48998488,135.24,135.21,4.0]
[1641852071181,2.48998488,135.24,135.21,9.003]
[1641852071382,2.48998488,135.24,135.23,4.0]
[1641852072886,0.79698488,135.24,135.23,4.0]
[1641852073085,1.849,135.31,135.23,8.0]
[1641852073284,61.14734671,135.32,135.3,4.0]
[1641852073487,61.14734671,135.32,135.31,4.0]
[1641852073887,61.14734671,135.32,135.31,12.758]
[1641852074484,61.14734671,135.32,135.31,16.758]
[1641852074685,103.60848382,135.36,135.31,16.758]
[1641852074885,103.60848382,135.36,135.35,4.0]
[1641852075185,103.60848382,135.36,135.35,9.852]
[1641852075384,103.60848382,135.36,135.35,37.51679]
[1641852077388,103.60848382,135.36,135.35,9.852]
[1641852077587,103.60848382,135.36,135.35,4.0]
[1641852077788,103.60848382,135.36,135.34,4.0]
[1641852078289,103.60848382,135.36,135.3,4.0]
[1641852078488,103.60848382,135.36,135.35,4.0]
[1641852079590,103.60848382,135.36,135.32,6.455]
[1641852079791,103.60848382,135.36,135.29,31.66479]
[1641852079992,103.60848382,135.36,135.35,4.0]
[1641852080191,103.60848382,135.36,135.3,6.037]
[1641852080391,103.60848382,135.36,135.35,4.1828551]
[1641852080695,103.60848382,135.36,135.35,8.1828551]
[1641852081698,75.38768382,135.36,135.35,8.1828551]
[1641852081896,8.382e-05,135.36,135.35,8.1828551]
[1641852082097,8.382e-05,135.36,135.35,12.1828551]
[1641852082698,1.846,135.41,135.35,12.1828551]
[1641852082897,1.846,135.46,135.35,12.1828551]
[1641852083400,27.66479,135.44,135.36,27.66479]
[1641852083598,1.846,135.43,135.36,27.66479]
[1641852084801,27.66479,135.44,135.36,27.66479]
[1641852085203,27.66479,135.44,135.41,4.0]
[1641852086503,27.66479,135.44,135.38,6.715]
[1641852087103,7.75223663,135.46,135.38,6.715]
[1641852087503,7.75223663,135.46,135.41,4.0]
[1641852089205,7.75223663,135.46,135.38,4.0]
[1641852089405,7.75223663,135.46,135.4,27.66479]
[1641852089607,7.75223663,135.46,135.43,4.0]
[1641852089809,1.845,135.47,135.44,4.0]
[1641852090005,1.845,135.47,135.46,4.0]
[1641852090206,1.845,135.51,135.46,10.556]
[1641852090414,1.845,135.52,135.49,4.0]
[1641852090811,1.844,135.53,135.49,4.0]
[1641852091512,29.50879,135.53,135.49,4.0]
[1641852093411,29.50879,135.53,135.43,36.64779]
[1641852093612,29.50879,135.53,135.45,4.0]
[1641852094212,29.50879,135.53,135.5,4.0]
[1641852094412,27.66479,135.53,135.5,4.0]
[1641852094811,10.34364103,135.54,135.5,4.0]
[1641852095011,8.49964103,135.54,135.5,4.0]
[1641852095611,8.49964103,135.54,135.46,31.66479]
[1641852095812,8.49964103,135.54,135.51,4.0]
[1641852096515,8.49964103,135.54,135.47,4.0]
[1641852096717,1.845,135.53,135.43,36.64779]
[1641852097316,1.845,135.53,135.46,4.0]
[1641852097616,27.66479,135.51,135.46,4.17941707]
[1641852098216,27.66479,135.51,135.48,4.0]
[1641852101421,27.66479,135.51,135.47,4.17974455]
[1641852101622,42.5277396,135.51,135.47,4.17974455]
[1641852101822,5.90477063,135.49,135.47,4.17974455]
[1641852102422,5.90477063,135.49,135.47,8.17974455]
[1641852102624,5.90477063,135.49,135.47,4.17974455]
[1641852104126,5.90477063,135.49,135.38,29.50979]
[1641852104327,5.90555438,135.47,135.38,27.66479]
[1641852104625,5.90635377,135.45,135.35,64.5251553]
[1641852104827,5.90635377,135.45,135.38,4.0]
[1641852105025,5.90635377,135.45,135.41,4.0]
[1641852105226,9.287,135.47,135.42,4.0]
[1641852105426,11.132,135.47,135.42,4.0]
[1641852105627,38.79679,135.47,135.42,4.0]
[1641852106429,36.95179,135.47,135.42,4.0]
[1641852106630,36.95179,135.47,135.41,8.571]
[1641852106832,27.66479,135.47,135.42,4.0]
[1641852107734,27.66479,135.47,135.38,4.0]
[1641852109034,27.66479,135.47,135.37,27.66479]
[1641852109035,27.66479,135.47,135.37,31.66479]
[1641852109234,2.99207166,135.44,135.43,4.0]
[1641852110537,27.66479,135.51,135.43,8.0]
[1641852110739,5.90149762,135.56,135.44,4.0]
[1641852110937,5.9027317,135.54,135.44,4.0]
[1641852111137,1.845,135.53,135.42,4.18108894]
[1641852111338,1.845,135.53,135.46,4.0]
[1641852111538,27.66479,135.52,135.46,4.0]
[1641852111737,27.66479,135.52,135.44,27.66479]
[1641852112237,27.66479,135.52,135.46,4.0]
[1641852113339,27.66479,135.52,135.44,27.66479]
[1641852113539,27.66479,135.52,135.46,4.0]
[1641852113741,33.56829646,135.52,135.44,27.66479]
[1641852113941,1.845,135.51,135.44,27.66479]
[1641852114141,1.845,135.51,135.43,4.18068303]
[1641852114550,9.242,135.51,135.43,4.18068303]
[1641852114750,5.90433089,135.5,135.43,4.18068303]
[1641852114948,1.845,135.49,135.43,4.18068303]
[1641852115249,7.74986647,135.49,135.43,4.18068303]
[1641852115651,27.66479,135.48,135.43,4.18068303]
[1641852115850,1.845,135.49,135.47,4.0]
[1641852116051,5.90269828,135.54,135.47,7.79]
[1641852116249,5.90269828,135.54,135.5,4.0]
[1641852116450,1.845,135.56,135.52,4.0]
[1641852116650,1.845,135.56,135.5,7.594]
[1641852117554,27.66479,135.55,135.5,7.594]
[1641852117753,27.66479,135.55,135.52,4.0]
[1641852120155,27.66479,135.55,135.5,7.594]
[1641852120555,27.66479,135.55,135.51,4.1784507]
[1641852121157,27.66479,135.55,135.51,8.1784507]
[1641852121455,27.66479,135.55,135.51,4.1784507]
[1641852121657,1.844,135.59,135.53,4.0]
[1641852121855,1.844,135.59,135.53,9.782]
[1641852122056,1.844,135.59,135.53,5.782]
[1641852122258,1.844,135.59,135.58,4.0]
[1641852122457,1.844,135.62,135.58,4.0]
[1641852122658,1.843,135.65,135.61,4.0]
[1641852122956,5.89646279,135.68,135.61,9.027]
[1641852123156,7.73946279,135.68,135.62,4.0]
[1641852123357,1.843,135.68,135.58,11.82]
[1641852123557,27.66479,135.66,135.58,7.82]
[1641852123758,27.66479,135.66,135.59,4.0]
[1641852123957,29.50779,135.66,135.57,27.66479]
[1641852124357,29.50779,135.66,135.6,4.0]
[1641852124957,29.50779,135.66,135.57,27.66479]
[1641852125457,29.50779,135.66,135.61,4.0]
[1641852126458,29.50779,135.66,135.57,27.66479]
[1641852126459,29.50779,135.66,135.62,4.0]
[1641852126659,27.66479,135.66,135.57,27.66479]
[1641852126860,27.66479,135.66,135.62,4.0]
[1641852127060,27.66479,135.66,135.6,4.0]
[1641852127260,36.93279,135.66,135.57,27.66479]
[1641852127460,5.89827064,135.64,135.56,4.0]
[1641852127661,29.50779,135.63,135.56,4.0]
[1641852127859,38.64379,135.63,135.55,27.66479]
[1641852128059,36.80079,135.63,135.59,4.0]
[1641852128261,36.80079,135.63,135.61,4.17582285]
[1641852128561,9.136,135.63,135.61,4.17582285]
[1641852128961,2.08936661,135.65,135.61,4.17582285]
[1641852129966,5.89806942,135.64,135.61,2.285e-05]
[1641852130169,13.92406942,135.64,135.61,2.285e-05]
[1641852132068,13.92406942,135.64,135.6,4.17624983]
[1641852132268,2.0896427,135.62,135.6,4.17624983]
[1641852133372,2.0896427,135.62,135.6,8.17624983]
[1641852133570,4.27e-05,135.62,135.61,4.0]
[1641852135072,4.27e-05,135.62,135.6,4.17624983]
[1641852135274,8.1330427,135.62,135.6,4.17624983]
[1641852135472,8.1330427,135.62,135.6,1e-08]
[1641852135672,27.66479,135.61,135.6,1e-08]
[1641852135872,27.66479,135.61,135.57,4.0]
[1641852136071,14.03217284,135.62,135.52,27.66479]
[1641852136371,14.03217284,135.62,135.57,4.0]
[1641852136771,14.03217284,135.62,135.52,27.66479]
[1641852136974,14.03217284,135.62,135.55,4.0]
[1641852137174,15.87517284,135.62,135.61,4.17593011]
[1641852137374,15.87517284,135.62,135.52,27.66479]
[1641852137776,27.66479,135.61,135.55,4.0]
[1641852138777,27.66479,135.61,135.53,4.0]
[1641852138978,1.844,135.6,135.53,4.0]
[1641852139176,1.844,135.6,135.52,27.66479]
[1641852139177,7.74409721,135.6,135.54,4.0]
[1641852139477,7.74409721,135.6,135.52,31.66479]
[1641852139676,27.66479,135.54,135.48,4.0]
[1641852139877,34.92279,135.54,135.48,4.0]
[1641852140476,34.92279,135.54,135.45,27.66479]
[1641852140777,34.92279,135.54,135.49,4.0]
[1641852140979,34.92279,135.54,135.47,4.0]
[1641852141177,34.92279,135.54,135.45,27.66479]
[1641852142382,34.92279,135.54,135.48,4.0]
[1641852143081,34.92279,135.54,135.49,4.0]
[1641852143282,34.92279,135.54,135.45,27.66479]
[1641852143481,34.92279,135.54,135.48,4.0]
[1641852143681,1.844,135.53,135.47,4.0]
[1641852143882,3.55142709,135.53,135.52,4.0]
[1641852144084,27.66479,135.54,135.52,4.0]
[1641852144284,1.844,135.6,135.53,4.0]
[1641852144484,7.74346925,135.63,135.59,4.0]
[1641852144686,1.845,135.63,135.57,8.022]
[1641852144883,1.843,135.65,135.59,4.0]
[1641852145086,7.7407552,135.65,135.53,11.951]
[1641852145284,7.7407552,135.65,135.53,7.951]
[1641852145483,7.7407552,135.65,135.56,4.0]
[1641852145683,1.843,135.67,135.61,31.66479]
[1641852145884,34.74033351,135.68,135.63,4.0]
[1641852146086,27.66479,135.68,135.61,27.66479]
[1641852146487,27.66479,135.68,135.61,31.66479]
[1641852146689,1.843,135.67,135.61,27.66479]
[1641852146888,1.843,135.67,135.63,4.0]
[1641852147088,29.50679,135.68,135.63,4.0]
[1641852147289,27.66479,135.68,135.61,27.66479]
[1641852148589,27.66479,135.68,135.63,4.0]
[1641852148989,3.63693289,135.64,135.63,4.0]
[1641852149189,1.842,135.69,135.63,4.0]
[1641852149389,10.96,135.71,135.61,39.27479]
[1641852149589,1.842,135.75,135.61,39.27479]
[1641852149790,29.50679,135.75,135.64,27.66479]
[1641852149991,29.50679,135.75,135.65,4.0]
[1641852150195,29.50679,135.75,135.64,27.66479]
[1641852150592,5.89362064,135.74,135.65,4.0]
[1641852150793,1.842,135.73,135.65,4.0]
[1641852151193,1.842,135.73,135.64,27.66479]
[1641852151397,7.73562064,135.74,135.64,27.66479]
[1641852151893,7.73562064,135.74,135.66,4.0]
[1641852152193,7.73562064,135.74,135.64,27.66479]
[1641852152895,7.73562064,135.74,135.67,4.0]
[1641852153497,29.50679,135.75,135.67,4.0]
[1641852153695,29.50679,135.75,135.68,27.66479]
[1641852153895,21.58779916,135.76,135.68,31.66479]
[1641852154096,21.58779916,135.76,135.69,4.0]
[1641852154595,21.58779916,135.76,135.66,4.0]
[1641852154796,19.74579916,135.76,135.64,31.66479]
[1641852154996,27.48089089,135.76,135.64,27.66479]
[1641852155398,27.48089089,135.76,135.64,31.66479]
[1641852155597,27.48089089,135.76,135.68,4.0]
[1641852155798,27.66479,135.74,135.68,4.0]
[1641852155998,36.92179,135.74,135.68,4.0]
[1641852156399,36.92179,135.74,135.65,8.1748427]
[1641852156602,36.92179,135.74,135.65,4.1748427]
[1641852156804,36.92179,135.74,135.69,4.0]
[1641852157303,36.92179,135.74,135.7,4.0]
[1641852157505,36.92179,135.74,135.71,4.0]
[1641852158104,36.92179,135.74,135.67,27.66479]
[1641852158303,42.81548122,135.74,135.66,4.0]
[1641852158704,5.89415407,135.73,135.66,4.0]
[1641852158904,1.842,135.72,135.65,8.1748427]
[1641852159105,5.89513137,135.71,135.65,8.1748427]
[1641852159305,15.05213137,135.71,135.65,8.1748427]
[1641852159705,15.05213137,135.71,135.65,4.0]
[1641852160105,15.05213137,135.71,135.64,27.66479]
[1641852160509,15.05213137,135.71,135.66,4.17426683]
[1641852160807,1.842,135.7,135.66,1e-08]
[1641852161208,5.89618313,135.69,135.66,1e-08]
[1641852161406,1.842,135.68,135.66,1e-08]
[1641852161607,12.97305652,135.67,135.66,1e-08]
[1641852161805,5.89815741,135.64,135.55,31.66479]
[1641852162005,15.13015741,135.64,135.57,4.0]
[1641852162205,15.13015741,135.64,135.55,27.66479]
[1641852162405,15.13015741,135.64,135.58,4.0]
[1641852163806,42.79494741,135.64,135.58,4.0]
[1641852164110,42.79494741,135.64,135.55,27.66479]
[1641852164310,42.79494741,135.64,135.57,4.0]
[1641852165211,42.79494741,135.64,135.55,27.66479]
[1641852165511,42.79494741,135.64,135.56,4.03982394]
[1641852166615,4.17662349,135.63,135.56,4.03982394]
[1641852167718,4.17662349,135.63,135.58,4.0]
[1641852168919,4.17662349,135.63,135.61,4.0]
[1641852169319,4.17662349,135.63,135.57,4.0]
[1641852169720,4.17662349,135.63,135.61,4.0]
[1641852169918,4.17662349,135.63,135.62,4.0]
[1641852170318,3.06139806,135.62,135.6,27.66479]
[1641852170519,11.69539806,135.62,135.6,27.66479]
[1641852171220,11.69539806,135.62,135.6,4.0]
[1641852172019,11.69539806,135.62,135.56,4.176779]
[1641852172419,11.69539806,135.62,135.56,8.176779]
[1641852172621,11.69539806,135.62,135.56,4.176779]
[1641852172821,13.53839806,135.62,135.56,4.176779]
[1641852173020,5.89943462,135.61,135.48,4.0]
[1641852173221,5.89943462,135.61,135.58,4.039303]
[1641852173422,1.843,135.6,135.54,4.0]
[1641852173821,1.843,135.6,135.52,27.66479]
[1641852174022,7.74343462,135.61,135.57,4.0]
[1641852174222,1.844,135.61,135.57,4.0]